[Event "Teplice Open 2022"]
[Site "Teplice"]
[Date "2022.06.24"]
[Round "7.10"]
[White "Holm, Kristian Stuvik"]
[Black "Postny, Evgeny"]
[Result "0-1"]
[ECO "E11"]
[WhiteElo "2458"]
[BlackElo "2563"]
[Annotator "ChessBase"]
[PlyCount "90"]
[EventDate "2022.06.18"]
[EventType "swiss"]
[EventCountry "CZE"]
[SourceTitle "playchess.com"]
[Source "ChessBase"]
[SourceQuality "1"]
[TimeControl "40/5400+30:1800+30"]

1. d4 {[%emt 0:02:47]} Nf6 {[%emt 0:01:03]} 2. c4 {[%emt 0:00:11]} e6 {[%emt 0:00:06]} 3. Nf3 {[%emt 0:00:33]} Bb4+ {[%emt 0:00:16]} 4. Bd2 {[%emt 0:00:36]} Qe7 {[%emt 0:00:25]} 5. g3 {[%emt 0:00:59]} Bxd2+ {[%emt 0:00:08]} 6. Qxd2 {[%emt 0:00:33]} Nc6 {[%emt 0:00:08]} 7. b3 {[%emt 0:01:19]} Ne4 {[%emt 0:01:21]} 8. Qb2 {[%emt 0:04:43]} O-O {[%emt 0:02:18]} 9. Bg2 {[%emt 0:01:03]} d6 {[%emt 0:01:25]} 10. O-O {[%emt 0:02:32]} f5 {[%emt 0:00:54]} 11. b4 {[%emt 0:10:40]} a5 {[%emt 0:17:31]} 12. b5 {[%emt 0:01:11]} Nd8 {[%emt 0:00:06]} 13. Nc3 {[%emt 0:07:20]} Nf7 {[%emt 0:03:53]} 14. Nxe4 {[%emt 0:05:53]} fxe4 {[%emt 0:00:28]} 15. Nd2 {[%emt 0:00:04]} d5 {[%emt 0:00:15]} 16. Rac1 {[%emt 0:01:20]} c6 {[%emt 0:02:33]} 17. bxc6 {[%emt 0:23:34]} bxc6 {[%emt 0:00:59]} 18. cxd5 {[%emt 0:00:35]} cxd5 {[%emt 0:00:47]} 19. Rc5 {[%emt 0:00:21]} Ba6 {[%emt 0:07:08]} 20. Nb3 {[%emt 0:02:55]} a4 {[%emt 0:11:54]} 21. Na5 {[%emt 0:00:04]} a3 {[%emt 0:00:53]} 22. Qd2 {[%emt 0:02:56]} Rac8 {[%emt 0:08:44]} 23. Rfc1 {[%emt 0:02:32]} Rxc5 {[%emt 0:03:32]} 24. dxc5 {[%emt 0:01:01]} Qf6 {[%emt 0:01:50]} 25. f4 {[%emt 0:07:04]} Rb8 {[%emt 0:06:42]} 26. Nc6 {[%emt 0:03:36]} Rb2 {[%emt 0:10:38]} 27. Qa5 {[%emt 0:00:00]} Bb7 {[%emt 0:00:15]} 28. Qc7 {[%emt 0:04:36]} Bxc6 {[%emt 0:05:26]} 29. Qxc6 {[%emt 0:00:07]} h6 {[%emt 0:04:31]} 30. Qe8+ {[%emt 0:03:02]} Kh7 {[%emt 0:00:04]} 31. c6 {[%emt 0:00:07]} Nd6 {[%emt 0:00:57]} 32. Qd7 {[%emt 0:04:30]} Qd4+ {[%emt 0:03:31]} 33. Kh1 {[%emt 0:01:33]} Rxa2 {[%emt 0:00:31]} 34. Bh3 {[%emt 0:06:04]} Ra1 {[%emt 0:04:28]} 35. Rxa1 {[%emt 0:00:03]} Qxa1+ {[%emt 0:00:03]} 36. Kg2 {[%emt 0:00:04]} Qe1 {[%emt 0:00:56]} 37. Bxe6 {[%emt 0:01:47]} Qxe2+ {[%emt 0:00:04]} 38. Kh3 {[%emt 0:00:17]} Qh5+ {[%emt 0:00:16]} 39. Kg2 {[%emt 0:00:01]} a2 {[%emt 0:01:52]} 40. Qd8 {[%emt 0:01:15]} Qf3+ {[%emt 0:00:17]} 41. Kh3 {[%emt 0:30:10]} Qh5+ {[%emt 0:30:08]} 42. Kg2 {[%emt 0:00:03]} a1=Q {[%emt 0:00:00]} 43. Qg8+ {[%emt 0:00:00]} Kg6 {[%emt 0:00:00]} 44. f5+ {[%emt 0:00:00]} Kf6 {[%emt 0:00:00]} 45. Qf8+ {[%emt 0:00:00]} Nf7 {[%emt 0:00:00]} 0-1

[Event "Teplice Open 2022"]
[Site "Teplice"]
[Date "2022.06.24"]
[Round "7.11"]
[White "Vlasak, Lukas"]
[Black "Stocek, Jiri"]
[Result "0-1"]
[ECO "B08"]
[WhiteElo "2437"]
[BlackElo "2533"]
[Annotator "TA"]
[PlyCount "102"]
[EventDate "2022.06.18"]
[EventType "swiss"]
[EventCountry "CZE"]
[SourceTitle "playchess.com"]
[Source "ChessBase"]
[SourceQuality "1"]
[TimeControl "40/5400+30:1800+30"]

{[%evp 13,102,1,34,20,43,41,52,38,47,37,41,41,58,27,43,52,60,15,27,-39,-45,-35,-39,-81,-84,-84,-84,-77,-79,-85,-79,-106,-106,-108,-102,-142,-142,-142,-135,-135,-135,-135,-120,-120,-120,-119,-101,-102,-102,-100,-98,-103,-108,-102,-97,-81,-63,-56,-19,-37,-29,-49,-8,-8,0,0,0,-33,-31,-130,-80,-83,-83,-154,-149,-241,-234,-293,-240,-474,-465,-549,-532,-566,-510,-751,-719,-29981,-29982,-6705,-5389]} 1. d4 {[%emt 0:00:24]} d6 {[%emt 0:03:44]} 2. e4 {[%emt 0:00:14]} Nf6 {[%emt 0:01:23]} 3. Nc3 {[%emt 0:00:09]} g6 {[%emt 0:00:10]} 4. Nf3 {[%emt 0:00:06]} Bg7 {[%emt 0:01:41]} 5. Be2 {[%emt 0:00:08]} O-O {[%emt 0:02:16]} 6. O-O {[%emt 0:00:08]} a6 {[%emt 0:00:28]} 7. h3 {[%emt 0:14:06]} Nc6 {[%emt 0:06:45]} 8. d5 {[%emt 0:05:53] B08: Pirc Defence: Classical System.} Na7 {[%emt 0:01:51][%cal Oa7b5]} 9. a4 {[%emt 0:00:31] Against Nb5} c6 {[%emt 0:07:01]} 10. Re1 {[%emt 0:02:26] White is slightly better.} Bd7 {[%emt 0:01:07]} 11. Bf1 {[%emt 0:05:58] [#]} Re8 $5 $146 {[%emt 0:03:42][%mdl 8] An interesting novelty.} ({Predecessor:} 11... b5 12. axb5 Nxb5 13. Na4 c5 14. c4 Nc7 15. e5 Nfe8 16. Bd2 Rb8 17. Bc3 Rb7 {½-½ (57) Sahil,T (2260)-David,A (2425) Bucharest 2019}) 12. Be3 {[%emt 0:07:32]} Qa5 {[%emt 0:17:42]} 13. Ra3 {[%emt 0:09:55]} Nc8 {[%emt 0:01:45]} 14. Qd2 {[%emt 0:10:19]} Rb8 {[%emt 0:02:57]} 15. Bf4 {[%emt 0:04:21]} cxd5 {[%emt 0:07:41]} 16. Nxd5 {[%emt 0:07:42]} ({White should try} 16. exd5 $11 Nb6 17. Rxe7 (17. Rd1 Rbc8 $11) 17... Rxe7 18. Bxd6 Nbxd5 19. Nxd5 (19. Bxb8 Nxc3 20. Qxc3 Qxc3 $11) 19... Qxd5 20. Rd3 (20. Bxe7 Qxd2 21. Nxd2 Re8 $11)) 16... Qxd2 $15 {[%emt 0:01:18]} 17. Nxf6+ {[%emt 0:05:24]} Bxf6 {[%emt 0:00:17]} 18. Nxd2 {[%emt 0:00:01]} Bxb2 {[%emt 0:00:38]} 19. Rb3 {[%emt 0:00:04]} Be5 {[%emt 0:14:48]} 20. Bxe5 {[%emt 0:01:18]} dxe5 {[%emt 0:00:05]} 21. Bxa6 {[%emt 0:00:18]} Nd6 {[%emt 0:09:34]} 22. Bb5 {[%emt 0:01:53]} Bxb5 {[%emt 0:00:37]} 23. axb5 {[%emt 0:00:06]} Rec8 {[%emt 0:00:04]} 24. c4 {[%emt 0:12:35]} Nxc4 {[%emt 0:02:30]} 25. Nxc4 {[%emt 0:02:25]} Rxc4 $17 {[%emt 0:00:04][%mdl 4096] Endgame KRR-KRR} 26. Rb2 {[%emt 0:00:26]} Rd8 {[%emt 0:01:10]} 27. f3 {[%emt 0:00:49]} f6 {[%emt 0:03:46]} 28. Ra1 {[%emt 0:00:44]} Kf7 {[%emt 0:01:13]} 29. Ra7 {[%emt 0:04:16]} Rd7 {[%emt 0:00:04]} 30. Kf2 {[%emt 0:00:43]} h5 {[%emt 0:00:28]} 31. h4 {[%emt 0:00:07]} Ke6 {[%emt 0:00:59]} 32. Ra8 {[%emt 0:01:00]} f5 {[%emt 0:04:33]} 33. exf5+ {[%emt 0:02:56]} gxf5 {[%emt 0:00:09]} 34. Kg3 {[%emt 0:00:08]} e4 {[%emt 0:01:26]} 35. Re2 {[%emt 0:01:09]} Ke5 {[%emt 0:01:12] White must now prevent ...f4+.} 36. f4+ {[%emt 0:00:41]} Kd5 {[%emt 0:00:57]} 37. Rh8 {[%emt 0:00:06]} Rc3+ {[%emt 0:01:31]} (37... e5 $5 {[%cal Rd7g7]} 38. Rxh5 Rf7 39. fxe5 Kxe5 $17) 38. Kf2 {[%emt 0:00:08]} Kc4 {[%emt 0:00:35]} 39. Rxh5 {[%emt 0:00:19]} e6 {[%emt 0:00:08]} 40. Rh6 {[%emt 0:01:31]} Rg7 {[%emt 0:01:06] Strongly threatening ...Rg4.} (40... Kxb5 41. Rxe6 Rh7 42. Rf6 $14) 41. Rh8 {[%emt 0:11:35]} (41. Rxe6 $15 Rg4 42. Re7) 41... Rcg3 {[%emt 0:06:00]} (41... Kxb5 $6 42. Rb2+ Kc5 43. Rc8+ Kd4 44. Rd8+ Kc5 45. Rc8+ Kd4 46. Rd8+ Kc5 47. Rc8+ $11) (41... Rb3 $142 {...Rg4 is the strong threat.} 42. Rc2+ Kxb5) 42. Rc8+ {[%emt 0:00:37]} Kb4 {[%emt 0:00:29]} (42... Kxb5 43. Rb2+) 43. Kf1 {[%emt 0:01:13] [#]} ({Better is} 43. Kg1) 43... Rb3 $1 {[%emt 0:03:07]} (43... Kxb5 {leads to mate.} 44. Rb2+) 44. Rec2 {[%emt 0:11:20] [#]} (44. h5 $17) 44... Rg4 $1 $19 {[%emt 0:02:46]} ({Worse is} 44... Kxb5 45. R8c7 Rxc7 46. Rxc7 $15) 45. R8c4+ {[%emt 0:01:27]} Ka5 {[%emt 0:03:23]} 46. Ra2+ $2 {[%emt 0:01:19]} (46. Rc7) 46... Kb6 {[%emt 0:00:04]} ({Avoid the trap} 46... Kxb5 $2 47. Rc7 Rxf4+ 48. Ke1 $19) 47. Rd4 {[%emt 0:00:08]} Rxf4+ {[%emt 0:03:28]} 48. Ke1 {[%emt 0:00:35]} Rb1+ {[%emt 0:02:03]} 49. Ke2 {[%emt 0:00:28]} Rg4 {[%emt 0:00:19]} 50. Ke3 {[%emt 0:00:40]} Rb3+ {[%emt 0:00:17]} 51. Kf2 {[%emt 0:00:04]} e3+ {[%emt 0:00:10] Weighted Error Value: White=0.50/Black=0.09 (flawless)} 0-1

[Event "Teplice Open 2022"]
[Site "Teplice"]
[Date "2022.06.24"]
[Round "7.12"]
[White "Kozak, Adam"]
[Black "Das, Arghyadip"]
[Result "1/2-1/2"]
[ECO "A49"]
[WhiteElo "2532"]
[BlackElo "2472"]
[Annotator "TA"]
[PlyCount "81"]
[EventDate "2022.06.18"]
[EventType "swiss"]
[EventCountry "CZE"]
[SourceTitle "playchess.com"]
[Source "ChessBase"]
[SourceQuality "1"]
[TimeControl "40/5400+30:1800+30"]

{[%evp 10,81,5,8,17,16,3,21,16,20,27,14,26,31,53,58,69,56,90,89,107,87,95,102,103,70,75,48,73,84,79,76,78,72,81,81,91,85,80,65,89,97,82,10,12,0,38,4,7,0,0,0,44,19,16,0,0,0,0,0,0,0,26,0,0,0,287,285,277,277,243,-50,-37,-48]} 1. Nf3 {[%emt 0:03:44]} Nf6 {[%emt 0:00:07]} 2. g3 {[%emt 0:01:07]} g6 {[%emt 0:00:06]} 3. b3 {[%emt 0:00:14]} Bg7 {[%emt 0:00:06]} 4. Bb2 {[%emt 0:00:05]} O-O {[%emt 0:00:07]} 5. Bg2 {[%emt 0:00:11]} d6 {[%emt 0:00:13]} 6. d4 {[%emt 0:00:12]} b5 {[%emt 0:00:25] A49: 1 d4 Nf6 2 Nf3 g6 3 g3: Anti-King's Indian systems.} 7. O-O {[%emt 0:01:51][%cal Of3e5]} Bb7 {[%emt 0:00:10]} 8. Qd3 {[%emt 0:00:10]} a6 {[%emt 0:06:42] The position is equal.} 9. c4 {[%emt 0:00:07]} bxc4 {[%emt 0:01:57]} 10. bxc4 {[%emt 0:00:07]} Nbd7 {[%emt 0:00:51]} 11. Nbd2 {[%emt 0:00:30] [#]} c5 $146 {[%emt 0:02:42]} ({Predecessor:} 11... a5 12. Rab1 Rb8 13. Bc3 c5 14. d5 Ba6 15. Rxb8 Nxb8 16. e4 Nbd7 17. Rb1 Qc7 {½-½ (45) Triapishko,A (2506)-Gabrielian,A (2464) Chess.com INT 2021}) 12. d5 {[%emt 0:02:56]} a5 {[%emt 0:08:40]} 13. e4 {[%emt 0:12:51]} Nb6 {[%emt 0:13:44]} 14. Rab1 {[%emt 0:04:52]} Ba6 {[%emt 0:01:57]} 15. Rfe1 {[%emt 0:01:50]} a4 {[%emt 0:16:27]} 16. Qc2 {[%emt 0:17:17]} Bc8 {[%emt 0:01:50]} 17. a3 {[%emt 0:06:09]} Rb8 {[%emt 0:07:16]} 18. h3 {[%emt 0:12:57]} Qc7 {[%emt 0:01:57]} 19. Rbd1 {[%emt 0:03:17]} Nfd7 {[%emt 0:05:44]} 20. Bxg7 {[%emt 0:00:33]} Kxg7 {[%emt 0:00:02]} 21. Qc3+ {[%emt 0:01:03]} f6 {[%emt 0:04:14]} 22. Nh2 {[%emt 0:00:55] White is more active.} Ne5 {[%emt 0:01:32]} 23. f4 {[%emt 0:00:57]} Nf7 {[%emt 0:00:03]} 24. Nhf3 {[%emt 0:05:29]} e5 {[%emt 0:03:06] [#]} 25. dxe6 $1 {[%emt 0:08:23]} Bxe6 {[%emt 0:00:01]} 26. Nh2 {[%emt 0:02:48]} (26. g4 $16) 26... Nd8 $11 {[%emt 0:02:18]} 27. Nhf3 {[%emt 0:01:43]} Kg8 {[%emt 0:03:30]} 28. e5 {[%emt 0:02:44]} dxe5 $1 {[%emt 0:00:49]} 29. fxe5 {[%emt 0:00:24]} f5 {[%emt 0:00:06]} 30. Ng5 {[%emt 0:00:39][%cal Bf3g5,Bg5h3,Bh3f2,Bf2e4][%mdl 32]} Qe7 {[%emt 0:00:14]} 31. h4 {[%emt 0:01:05]} h6 {[%emt 0:09:05]} 32. Nh3 $36 {[%emt 0:00:09][%mdl 2048] White has good play.} g5 {[%emt 0:00:20] Against Nf4} 33. hxg5 {[%emt 0:00:28]} hxg5 {[%emt 0:00:02]} 34. g4 {[%emt 0:04:03]} fxg4 {[%emt 0:03:41]} 35. Nf2 {[%emt 0:00:02]} Qg7 {[%emt 0:01:48]} (35... Qf7 36. Nde4 Nd7 37. Qe3 $16) 36. Nfe4 {[%emt 0:04:50]} Nd7 {[%emt 0:00:21] Inhibits Nf6+.} 37. Qe3 {[%emt 0:01:34]} Nf7 $2 {[%emt 0:06:12][%mdl 8192]} ({Resist} 37... Nxe5 38. Nxc5 Nxc4 39. Nxc4 Bxc4 40. Nd7 $16 (40. Rd4 Bb3 $14)) (37... Rf5 $11 {and Black is okay.}) 38. Nf6+ $1 $18 {[%emt 0:00:14]} ({Stronger than} 38. Nxc5 Nxc5 39. Qxc5 Qh6 $15) 38... Kh8 {[%emt 0:00:09]} 39. Nxd7 {[%emt 0:00:47] The board is on fire.} Bxd7 {[%emt 0:00:01]} 40. Ne4 $2 {[%emt 0:00:42]} ({Worse is} 40. Qxc5 Be6 $11) (40. e6 $18 Rfe8 41. Bd5) 40... Nxe5 $15 {[%emt 0:01:20] [#] Threatens to win with ...Nf3+.} 41. Qxg5 {[%emt 0:17:36] Weighted Error Value: White=0.19 (very precise) /Black=0.23 (precise)} 1/2-1/2

[Event "Teplice Open 2022"]
[Site "Teplice"]
[Date "2022.06.24"]
[Round "7.13"]
[White "Dahale, Atul"]
[Black "Iniyan, P."]
[Result "0-1"]
[ECO "E59"]
[WhiteElo "2153"]
[BlackElo "2518"]
[Annotator "TA"]
[PlyCount "102"]
[EventDate "2022.06.18"]
[EventType "swiss"]
[EventCountry "CZE"]
[SourceTitle "playchess.com"]
[Source "ChessBase"]
[SourceQuality "1"]
[TimeControl "40/5400+30:1800+30"]

{[%evp 21,102,16,18,0,20,-1,0,0,18,0,20,32,64,60,110,43,51,36,30,29,36,0,0,0,0,0,0,0,0,0,0,0,0,-23,-16,-94,-27,-60,0,0,0,0,10,0,0,0,0,-65,0,0,0,0,0,-61,-61,-123,-131,-432,-425,-529,-529,-821,-534,-553,-553,-556,-516,-513,-501,-528,-527,-517,-511,-644,-629,-29987,-29988,-29991,-29992,-29996,-29997,-29997,-742]} 1. d4 {[%emt 0:06:52]} Nf6 {[%emt 0:00:09]} 2. c4 {[%emt 0:00:23]} e6 {[%emt 0:00:08]} 3. Nc3 {[%emt 0:00:12]} Bb4 {[%emt 0:00:06]} 4. e3 {[%emt 0:01:01]} O-O {[%emt 0:00:09]} 5. Bd3 {[%emt 0:00:49]} d5 {[%emt 0:00:12]} 6. Nf3 {[%emt 0:01:50]} c5 {[%emt 0:00:19]} 7. O-O {[%emt 0:00:40]} dxc4 {[%emt 0:00:47]} 8. Bxc4 {[%emt 0:00:06]} Nc6 {[%emt 0:00:09]} 9. a3 {[%emt 0:01:44]} Bxc3 {[%emt 0:00:10]} 10. bxc3 {[%emt 0:00:05]} Qc7 {[%emt 0:00:08]} 11. Qe2 {[%emt 0:03:08] 11.Re1 is the modern continuation.} e5 {[%emt 0:14:05]} 12. h3 {[%emt 0:02:00] E59: Nimzo-Indian: Rubinstein: Main Line: 7...Nc6 8 a3 Bxc3 9 bxc3 dxc4.} Bf5 {[%emt 0:05:16]} 13. Bb5 {[%emt 0:14:05]} (13. dxc5 Na5 $15) 13... e4 {[%emt 0:09:07] [#]} 14. Bxc6 $146 {[%emt 0:03:52] The position is equal.} ({Predecessor:} 14. Nd2 Rfd8 15. Nb3 b6 16. Bb2 Ne7 17. Rfd1 Ng6 18. dxc5 bxc5 19. Rxd8+ Rxd8 20. Rd1 Rxd1+ 21. Qxd1 {½-½ (36) Von Krogh,C (2233)-Karagianis,P (2190) Las Vegas 2015}) 14... bxc6 {[%emt 0:00:07]} 15. Ne5 {[%emt 0:04:47]} Rfb8 {[%emt 0:00:59]} (15... Nd5 $5 {[%cal Rf7f6]}) 16. a4 {[%emt 0:00:56]} Nd5 {[%emt 0:06:15]} 17. Ba3 $1 {[%emt 0:04:37]} Be6 {[%emt 0:25:39]} (17... Nxc3 $14 18. Qc4 cxd4 19. exd4 Nd5) 18. Bxc5 {[%emt 0:11:30]} (18. Rfc1 $16) 18... f6 $14 {[%emt 0:00:36]} 19. c4 {[%emt 0:02:56]} Nb4 {[%emt 0:03:08]} 20. Bxb4 {[%emt 0:14:56]} Rxb4 {[%emt 0:00:11]} 21. Qe1 {[%emt 0:07:47]} (21. d5 $5 Qxe5 22. dxe6 $11) 21... Rb6 {[%emt 0:03:46]} 22. a5 {[%emt 0:05:33]} Rb7 {[%emt 0:00:28]} 23. a6 {[%emt 0:02:29]} Rb6 {[%emt 0:00:29]} (23... Rbb8 24. Nxc6 Qxc6 25. d5 Bxd5 26. cxd5 Qxd5 27. Qa5 Qxa5 28. Rxa5 $14) 24. Qa5 {[%emt 0:01:11] And now c5 would win.} ({Of course not} 24. c5 Rb5 25. Ng4 Bc4 $15) 24... Qc8 {[%emt 0:01:21]} (24... fxe5 $2 25. c5 $18) 25. Ng4 {[%emt 0:02:07]} Bxc4 {[%emt 0:00:36][%cal Rb6a6]} 26. Rfc1 {[%emt 0:00:27]} Bxa6 {[%emt 0:00:14]} 27. d5 {[%emt 0:02:09]} Bb7 {[%emt 0:01:47]} 28. Rc4 {[%emt 0:02:23] [#]} (28. d6 $11) 28... Qd8 {[%emt 0:07:06]} (28... Qf5 $1 $17 29. d6 Qe6) 29. dxc6 $11 {[%emt 0:01:27]} Bxc6 {[%emt 0:01:27]} (29... Rxc6 $15 30. Qxd8+ Rxd8 31. Rxe4 Rdc8) 30. Rac1 {[%emt 0:01:11]} Qd5 {[%emt 0:01:50]} 31. Rc5 {[%emt 0:01:21]} Qd6 {[%emt 0:01:21]} 32. Qa2+ {[%emt 0:00:26]} Kh8 {[%emt 0:01:35]} 33. Qc4 {[%emt 0:00:47][%cal Rc5c6]} Bb7 {[%emt 0:00:48]} 34. Rc7 {[%emt 0:00:38]} ({White should try} 34. Qa4 $11 h6 35. Nh2) 34... Qd5 {[%emt 0:02:12]} (34... Bd5 $1 $15 35. Qd4 Qe6) 35. Qc3 {[%emt 0:01:02]} Qe6 {[%emt 0:01:32]} 36. Qa3 {[%emt 0:00:28]} h5 {[%emt 0:05:45][%cal Bh7h5,Bh5g4][%mdl 32]} 37. Re7 {[%emt 0:00:15]} (37. Nh2 $11) 37... Qb3 $1 $15 {[%emt 0:01:30]} 38. Qa5 {[%emt 0:00:28]} Qb5 $17 {[%emt 0:01:15]} (38... hxg4 {gets mated.} 39. Qh5+ Kg8 40. Qg6) 39. Qa2 {[%emt 0:00:46][%mdl 8192] This move loses the game for White.} (39. Qa3 $17 {is more resistant.} hxg4 40. Rxg7) 39... Bd5 $19 {[%emt 0:01:40]} ({Inferior is} 39... hxg4 40. Qf7 Rg8 41. Rec7 $15) 40. Qa3 {[%emt 0:00:24]} hxg4 {[%emt 0:01:48]} 41. Rcc7 {[%emt 0:00:23]} Ra6 {[%emt 0:30:35]} 42. Qc1 {[%emt 0:03:34]} Rc6 {[%emt 0:00:00]} 43. Qd1 {[%emt 0:00:13]} Rxc7 {[%emt 0:00:00]} 44. Rxc7 {[%emt 0:00:02]} Be6 {[%emt 0:00:00]} 45. Qd6 {[%emt 0:00:07]} Qe5 {[%emt 0:00:00]} 46. Qe7 {[%emt 0:00:24][%csl Gc7][%cal Re7g7] [#]} f5 $1 {[%emt 0:00:00][%cal Bf6f5,Bf5g4][%mdl 32]} 47. Rc6 {[%emt 0:02:30] [#]} Rb8 $1 {[%emt 0:00:00] ( -> ...Rb1+)} 48. g3 {[%emt 0:01:14]} (48. Qh4+ Kg8) 48... Qa1+ {[%emt 0:00:00] Black mates.} 49. Kh2 {[%emt 0:00:04] [#]} Qf1 $1 {[%emt 0:00:00][%csl LRf2,LRh3]} 50. hxg4 {[%emt 0:02:33]} (50. Qh4+ Kg8) 50... Qxf2+ {[%emt 0:00:00]} 51. Kh3 {[%emt 0:00:05]} fxg4+ {[%emt 0:00:00] Weighted Error Value: White=0.38/Black=0.20 (precise)} 0-1

[Event "Teplice Open 2022"]
[Site "Teplice"]
[Date "2022.06.24"]
[Round "7.14"]
[White "Sankalp Gupta"]
[Black "Pranav, Anand"]
[Result "0-1"]
[ECO "D02"]
[WhiteElo "2505"]
[BlackElo "2467"]
[Annotator "TA"]
[PlyCount "76"]
[EventDate "2022.06.18"]
[EventType "swiss"]
[EventCountry "CZE"]
[SourceTitle "playchess.com"]
[Source "ChessBase"]
[SourceQuality "1"]
[TimeControl "40/5400+30:1800+30"]

{[%evp 9,76,0,23,15,13,7,16,5,22,27,31,6,10,0,0,-8,0,0,0,-8,-2,-17,0,0,0,0,0,0,52,57,49,52,50,-78,0,-17,0,0,16,-27,-41,-39,-47,-44,-44,-38,-37,-146,-111,-108,-36,-49,0,0,106,112,101,127,118,0,0,-1649,-1647,-1408,-1382,-29990,-29991,-29991,-1741]} 1. d4 {[%emt 0:04:19]} d5 {[%emt 0:00:18]} 2. Nf3 {[%emt 0:00:09]} Nf6 {[%emt 0:00:06]} 3. Bf4 {[%emt 0:00:06]} c5 {[%emt 0:01:11]} 4. e3 {[%emt 0:00:20]} Nc6 {[%emt 0:00:44]} 5. Nbd2 {[%emt 0:00:03]} cxd4 {[%emt 0:01:40]} 6. exd4 {[%emt 0:00:03] D02: 1 d4 d5 2 Nf3 sidelines, including 2...Nf6 3 g3 and 2...Nf6 3 Bf4.} Bf5 {[%emt 0:00:09]} 7. c3 {[%emt 0:01:23]} e6 {[%emt 0:04:03]} 8. Qb3 {[%emt 0:00:57] The position is equal.} Qd7 {[%emt 0:00:03] 8...Bd6 is becoming the main line.} 9. Ne5 {[%emt 0:16:12]} Qc8 {[%emt 0:00:04]} 10. Qa4 {[%emt 0:06:07]} a6 {[%emt 0:07:59]} 11. Nxc6 {[%emt 0:01:53]} (11. Bd3 {is more complex.} Nh5 12. Be3 Bd6 13. Qd1) 11... bxc6 {[%emt 0:03:37] [#]} 12. Nb3 $146 {[%emt 0:02:19]} ({Predecessor:} 12. Be2 Be7 13. O-O O-O 14. Rac1 c5 15. dxc5 Bxc5 16. Nb3 Nd7 17. Nxc5 Nxc5 18. Qd4 Nd7 19. c4 {0-1 (40) Tionko,E (1801)-Wan,K (1402) Canberra 2009}) 12... Nd7 {[%emt 0:09:53]} 13. Na5 {[%emt 0:05:17]} c5 {[%emt 0:02:08]} 14. Be2 {[%emt 0:09:37]} Be7 $1 {[%emt 0:04:39]} 15. g4 {[%emt 0:04:31]} Be4 {[%emt 0:02:51]} 16. f3 {[%emt 0:02:41]} Bg6 {[%emt 0:04:46]} 17. h4 {[%emt 0:00:32] [#] And now h5 would win.} h5 {[%emt 0:10:59]} 18. Nc6 {[%emt 0:03:16]} hxg4 {[%emt 0:00:25]} (18... Bf6 $11 19. g5 Nb6) 19. Nxe7 $14 {[%emt 0:02:07]} Kxe7 {[%emt 0:00:02]} 20. fxg4 {[%emt 0:00:02]} Be4 {[%emt 0:03:53]} 21. O-O {[%emt 0:01:32][%cal Bh1f1,Bf1f2,Bf2h2][%mdl 32]} (21. Rf1 $14 {stays ahead.}) 21... f6 {[%emt 0:01:23]} (21... Rxh4 $17 {White must now prevent ...f6.} 22. Bg5+ f6 23. Bxh4 Qh8) 22. h5 $11 {[%emt 0:08:10]} g6 $36 {[%emt 0:13:43][%mdl 2048] Black has some pressure.} 23. hxg6 {[%emt 0:08:53]} Rg8 {[%emt 0:00:05]} 24. Rf2 {[%emt 0:06:20]} Rxg6 {[%emt 0:01:15] aiming for ...Qg8.} 25. Rh2 {[%emt 0:00:27] [#] Rh7+ is the strong threat.} Qg8 {[%emt 0:01:36] Against Rh7+} 26. Rh4 {[%emt 0:00:01]} e5 {[%emt 0:04:24]} 27. Bg3 {[%emt 0:01:10]} Qg7 {[%emt 0:00:36]} 28. dxc5 {[%emt 0:03:30]} (28. Qc6 $2 Rh8 29. dxc5 Rxh4 30. Qd6+ Ke8 $19) ({White should try} 28. Rf1 $15) 28... Rh8 {[%emt 0:00:58]} 29. Rxh8 {[%emt 0:05:15]} ({Not} 29. c6 $2 Rxh4 30. Qb4+ Ke6 31. cxd7 Rgxg4 32. Bxg4+ Rxg4 33. Qb6+ (33. d8=Q {is a self mate.} Rxg3+ 34. Kf2 Rf3+ 35. Ke1 Qg1+ 36. Ke2 Qg2+ 37. Ke1 Rf1#) 33... Kf7 34. d8=N+ (34. d8=Q Rxg3+ 35. Kf1 Bd3+ 36. Ke1 Rg1+) 34... Kg8 35. Qe6+ Kh7 $19) 29... Qxh8 {[%emt 0:00:23] Really sharp!} (29... Rxg4 $17 30. Bxg4 Qxg4 31. Rh7+ Kf8 32. Rh8+ Kg7 33. Qxe4 dxe4) 30. Kf2 $15 {[%emt 0:00:00] Hoping for c6.} Qh3 {[%emt 0:04:35]} (30... Qc8 $15 {should be considered.} 31. Qa3 Nxc5) 31. Rg1 $11 {[%emt 0:00:02]} Rxg4 {[%emt 0:00:43]} (31... Nxc5 $2 32. Qb4 $18) (31... f5 $1 $11 32. c6 Nc5) 32. Bxg4 $16 {[%emt 0:02:32]} Qxg4 {[%emt 0:00:01]} 33. Ke1 {[%emt 0:00:49]} Qg5 {[%emt 0:04:33] ( -> ...Qe3+)} (33... Nxc5 $2 34. Qb4 Kf7 35. Qxc5 $18) 34. Ke2 {[%emt 0:02:29] Against Qe3+} ({Only move:} 34. Bf2 $16 Qc1+ 35. Qd1 Qxb2 36. Qb3 Qc1+ 37. Ke2) 34... Bd3+ $11 {[%emt 0:01:23]} (34... Nxc5 $5 35. Qb4 Bd3+ 36. Kd1 Qh5+ 37. Kc1 Qh6+ 38. Kd1 Qh5+ 39. Kc1 Qh6+ 40. Kd1 Qh5+ $11) 35. Kf3 $2 {[%emt 0:01:17][%mdl 8192]} (35. Kd1 $11) 35... Qh5+ $19 {[%emt 0:01:30]} ({Inferior is} 35... Be4+ 36. Ke2 Bd3+ 37. Kd1 $11) 36. Kg2 {[%emt 0:00:02]} Qe2+ {[%emt 0:00:44]} 37. Kh3 {[%emt 0:00:46]} Bf5+ {[%emt 0:00:49]} 38. Kh4 {[%emt 0:00:01]} Qe3 {[%emt 0:00:10] Weighted Error Value: White=0.54/Black=0.15 (very precise)} (38... Qf3 $142 39. Re1 Nf8 40. Rxe5+ fxe5 41. Kg5 Ne6+ 42. Kh6 Qxg3 43. Qd7+ Kxd7 44. c6+ Kxc6 45. Kh5 Qh3#) 0-1